[Event "Satka Autumn 2019"]
[Site "Satka"]
[Date "2019.09.22"]
[Round "4.9"]
[White "Schepetkova, Margarita"]
[Black "Eidelson, Rakhil"]
[Result "1-0"]
[ECO "E68"]
[WhiteElo "2194"]
[BlackElo "2064"]
[Annotator "NA"]
[PlyCount "155"]
[EventDate "2019.09.19"]
[EventType "swiss"]
[EventCountry "RUS"]
[SourceTitle "playchess.com"]
[Source "ChessBase"]
[SourceQuality "1"]
[TimeControl "5400+30"]

1. d4 {[%emt 0:00:00]} Nf6 {[%emt 0:00:00]} 2. c4 {[%emt 0:00:00]} g6 {[%emt 0:00:00]} 3. Nf3 {[%emt 0:00:05]} Bg7 {[%emt 0:00:00]} 4. g3 {[%emt 0:00:06]} O-O {[%emt 0:00:00]} 5. Bg2 {[%emt 0:00:08]} d6 {[%emt 0:00:07]} 6. O-O {[%emt 0:00:08]} Nbd7 {[%emt 0:00:06]} 7. Nc3 {[%emt 0:00:09]} e5 {[%emt 0:00:07]} 8. e4 {[%emt 0:00:19]} exd4 {[%emt 0:07:08]} 9. Nxd4 {[%emt 0:00:05]} Nc5 {[%emt 0:00:12]} 10. h3 {[%emt 0:10:42]} Re8 {[%emt 0:00:41]} 11. Re1 {[%emt 0:01:59]} Bd7 {[%emt 0:00:05]} 12. Rb1 {[%emt 0:09:19]} Qc8 {[%emt 0:00:29]} 13. g4 h5 14. f3 {[%emt 0:15:46]} Ne6 {[%emt 0:23:29]} 15. Nde2 {[%emt 0:03:43]} Qd8 {[%emt 0:02:17]} 16. Be3 {[%emt 0:00:49]} hxg4 {[%emt 0:06:01]} 17. hxg4 {[%emt 0:00:14]} Nh7 {[%emt 0:00:19]} 18. Qd2 {[%emt 0:01:28]} Qh4 19. Bf2 {[%emt 0:00:30]} Bh6 {[%emt 0:04:43]} 20. Bxh4 Bxd2 {[%emt 0:00:03]} 21. Red1 {[%emt 0:01:08]} Bh6 {[%emt 0:01:31]} 22. e5 {[%emt 0:07:02]} Bc6 {[%emt 0:13:28]} 23. exd6 {[%emt 0:00:22]} cxd6 {[%emt 0:00:01]} 24. Rxd6 {[%emt 0:03:59]} Nhg5 {[%emt 0:03:32]} 25. Nd5 {[%emt 0:09:55]} Bxd5 {[%emt 0:00:02]} 26. Rxd5 {[%emt 0:06:07]} Rac8 {[%emt 0:01:04]} 27. b3 {[%emt 0:05:07]} Nh7 {[%emt 0:05:40]} 28. Kf1 {[%emt 0:01:17]} a6 {[%emt 0:02:47]} 29. Rbd1 {[%emt 0:01:32]} b5 {[%emt 0:02:31]} 30. cxb5 {[%emt 0:04:29]} axb5 {[%emt 0:00:02]} 31. f4 {[%emt 0:04:26]} Rc2 {[%emt 0:05:08]} 32. R1d2 {[%emt 0:02:45]} Rxd2 {[%emt 0:00:57]} 33. Rxd2 {[%emt 0:00:02]} g5 {[%emt 0:04:32]} 34. fxg5 {[%emt 0:02:40]} Nhxg5 {[%emt 0:00:02]} 35. Rd5 {[%emt 0:01:23]} b4 {[%emt 0:02:41]} 36. Be1 {[%emt 0:00:39]} Bf8 {[%emt 0:01:51]} 37. Rb5 {[%emt 0:01:52]} Rd8 {[%emt 0:06:13]} 38. Bxb4 {[%emt 0:00:48]} Bxb4 {[%emt 0:00:09]} 39. Rxb4 {[%emt 0:00:02]} Rd1+ {[%emt 0:00:05]} 40. Kf2 {[%emt 0:00:00]} Nc5 {[%emt 0:00:00]} 41. Rd4 {[%emt 0:00:00]} Ra1 {[%emt 0:00:00]} 42. b4 {[%emt 0:00:00]} Nce6 {[%emt 0:00:00]} 43. Rd2 {[%emt 0:00:00]} Rb1 {[%emt 0:00:00]} 44. a3 {[%emt 0:00:00]} Rb3 {[%emt 0:00:00]} 45. Ra2 {[%emt 0:00:00]} Kg7 {[%emt 0:00:00]} 46. Bd5 {[%emt 0:00:00]} Rb1 {[%emt 0:00:00]} 47. Bxe6 {[%emt 0:00:00]} Nxe6 {[%emt 0:00:00]} 48. Ke3 {[%emt 0:00:00]} Kf6 {[%emt 0:00:00]} 49. Nc3 {[%emt 0:00:00]} Rg1 {[%emt 0:00:00]} 50. Rf2+ {[%emt 0:04:38]} Ke7 {[%emt 0:00:00]} 51. a4 {[%emt 0:00:52]} Rxg4 {[%emt 0:00:00]} 52. Ne4 {[%emt 0:00:33]} Rg1 {[%emt 0:00:00]} 53. Kd3 {[%emt 0:01:48]} Rd1+ {[%emt 0:00:00]} 54. Kc3 {[%emt 0:00:57]} Rc1+ {[%emt 0:00:00]} 55. Kd3 {[%emt 0:00:44]} Rd1+ {[%emt 0:00:00]} 56. Nd2 {[%emt 0:00:43]} Rc1 {[%emt 0:00:00]} 57. Nb3 {[%emt 0:01:16]} Rc8 {[%emt 0:00:00]} 58. a5 {[%emt 0:01:41]} Rb8 {[%emt 0:00:00]} 59. Kc4 {[%emt 0:00:34]} Nc7 {[%emt 0:00:00]} 60. Nd4 {[%emt 0:01:51]} Rc8 {[%emt 0:00:49]} 61. Nc6+ {[%emt 0:00:58]} Kd6 {[%emt 0:01:23]} 62. b5 {[%emt 0:00:36]} Rh8 {[%emt 0:03:45]} 63. Rd2+ {[%emt 0:01:30]} Ke6 {[%emt 0:00:42]} 64. b6 {[%emt 0:00:43]} Rh4+ {[%emt 0:02:57]} 65. Nd4+ {[%emt 0:00:31]} Kd7 {[%emt 0:00:40]} 66. bxc7 {[%emt 0:00:45]} Kxc7 {[%emt 0:00:32]} 67. Rf2 {[%emt 0:00:42]} Rh7 {[%emt 0:01:38]} 68. Rf6 {[%emt 0:00:33]} Kd7 {[%emt 0:01:03]} 69. Nb3 {[%emt 0:00:45]} Kc7 {[%emt 0:00:52]} 70. Rf5 {[%emt 0:00:31]} Kb7 {[%emt 0:00:15]} 71. Rf6 {[%emt 0:00:01]} Ka7 {[%emt 0:00:10]} 72. Kb5 {[%emt 0:00:07]} Kb7 {[%emt 0:00:26]} 73. Nc5+ {[%emt 0:00:24]} Ka7 {[%emt 0:00:12]} 74. Rd6 {[%emt 0:00:26]} Kb8 {[%emt 0:00:34]} 75. Kb6 {[%emt 0:00:22]} Kc8 {[%emt 0:00:02]} 76. Rc6+ {[%emt 0:00:13]} Kd8 {[%emt 0:00:12]} 77. a6 {[%emt 0:00:18]} Rh1 {[%emt 0:00:12]} 78. Nb7+ {[%emt 0:00:13]} 1-0

[Event "Satka Autumn 2019"]
[Site "Satka"]
[Date "2019.09.22"]
[Round "4.10"]
[White "Petrukhina, Olga"]
[Black "Stroganova, Karina"]
[Result "1-0"]
[ECO "A89"]
[WhiteElo "2192"]
[BlackElo "1885"]
[Annotator "NA"]
[PlyCount "61"]
[EventDate "2019.09.19"]
[EventType "swiss"]
[EventCountry "RUS"]
[SourceTitle "playchess.com"]
[Source "ChessBase"]
[SourceQuality "1"]
[TimeControl "5400+30"]

1. Nf3 {[%emt 0:00:00]} f5 {[%emt 0:00:00]} 2. d4 {[%emt 0:00:00]} Nf6 {[%emt 0:00:03]} 3. g3 {[%emt 0:00:00]} g6 {[%emt 0:00:09]} 4. Bg2 {[%emt 0:00:00]} Bg7 {[%emt 0:00:15]} 5. O-O {[%emt 0:00:00]} d6 {[%emt 0:00:11]} 6. c4 {[%emt 0:00:00]} O-O {[%emt 0:00:13]} 7. Nc3 {[%emt 0:00:00]} Nc6 {[%emt 0:00:47]} 8. d5 {[%emt 0:05:12]} Ne5 {[%emt 0:00:15]} 9. Nxe5 {[%emt 0:01:41]} dxe5 {[%emt 0:00:08]} 10. e4 {[%emt 0:00:31]} f4 {[%emt 0:00:31]} 11. b3 {[%emt 0:22:02]} g5 {[%emt 0:09:12]} 12. f3 {[%emt 0:02:36]} g4 {[%emt 0:03:12]} 13. gxf4 {[%emt 0:07:37]} exf4 {[%emt 0:01:06]} 14. Rb1 {[%emt 0:10:13]} g3 {[%emt 0:26:31]} 15. hxg3 {[%emt 0:12:59]} fxg3 {[%emt 0:00:16]} 16. e5 {[%emt 0:01:13]} Nh5 {[%emt 0:03:01]} 17. f4 {[%emt 0:00:23]} Qe8 {[%emt 0:00:13]} 18. Ne4 {[%emt 0:16:46]} Qg6 {[%emt 0:01:11]} 19. e6 {[%emt 0:02:21]} Nf6 {[%emt 0:12:20]} 20. f5 {[%emt 0:01:19]} Qe8 {[%emt 0:01:47]} 21. Nxf6+ {[%emt 0:00:49]} Rxf6 {[%emt 0:03:32]} 22. Qg4 {[%emt 0:01:44]} h5 {[%emt 0:01:42]} 23. Qxg3 {[%emt 0:00:22]} Qf8 {[%emt 0:00:18]} 24. Bb2 {[%emt 0:08:02]} Rh6 {[%emt 0:00:16]} 25. Bc1 {[%emt 0:01:21]} Rf6 {[%emt 0:00:08]} 26. Be4 {[%emt 0:00:59]} h4 {[%emt 0:05:10]} 27. Qg4 {[%emt 0:01:54]} h3 {[%emt 0:02:11]} 28. Kh1 {[%emt 0:00:24]} h2 {[%emt 0:02:44]} 29. Rb2 {[%emt 0:00:31]} Bxe6 {[%emt 0:00:59]} 30. dxe6 {[%emt 0:00:09]} Rxe6 {[%emt 0:00:05]} 31. Bd5 {[%emt 0:00:37]} 1-0

[Event "Satka Autumn 2019"]
[Site "Satka"]
[Date "2019.09.22"]
[Round "4.11"]
[White "Zyapaeva, Polina"]
[Black "Makarenko, Alexandra"]
[Result "0-1"]
[ECO "A16"]
[WhiteElo "1808"]
[BlackElo "2169"]
[Annotator "NA"]
[PlyCount "82"]
[EventDate "2019.09.19"]
[EventType "swiss"]
[EventCountry "RUS"]
[SourceTitle "playchess.com"]
[Source "ChessBase"]
[SourceQuality "1"]
[TimeControl "5400+30"]

1. c4 {[%emt 0:00:00]} Nf6 {[%emt 0:00:00]} 2. Nc3 {[%emt 0:00:00]} g6 {[%emt 0:00:29]} 3. g3 {[%emt 0:00:54]} Bg7 {[%emt 0:01:01]} 4. Bg2 {[%emt 0:00:17]} O-O {[%emt 0:00:24]} 5. e4 {[%emt 0:03:02]} d6 {[%emt 0:00:19]} 6. Nge2 {[%emt 0:01:58]} Nc6 {[%emt 0:00:54]} 7. d3 {[%emt 0:01:53]} a6 {[%emt 0:01:02]} 8. h3 {[%emt 0:02:21]} Rb8 {[%emt 0:00:45]} 9. a4 {[%emt 0:00:18]} Nb4 {[%emt 0:03:51]} 10. Be3 {[%emt 0:06:14]} Nd7 {[%emt 0:02:28]} 11. O-O {[%emt 0:09:48]} Ne5 {[%emt 0:03:07]} 12. Nc1 {[%emt 0:04:15]} c5 {[%emt 0:00:23]} 13. Rb1 {[%emt 0:07:10]} Bd7 {[%emt 0:00:51]} 14. f4 {[%emt 0:01:42]} Nec6 {[%emt 0:01:07]} 15. N1e2 {[%emt 0:08:10]} Nd4 {[%emt 0:14:07]} 16. Bf2 {[%emt 0:03:29]} Qa5 {[%emt 0:20:16]} 17. b3 {[%emt 0:04:58]} Nbc6 {[%emt 0:14:36]} 18. Kh1 {[%emt 0:07:26]} b5 {[%emt 0:07:52]} 19. axb5 {[%emt 0:06:56]} axb5 {[%emt 0:08:17]} 20. f5 {[%emt 0:15:22]} Nxe2 {[%emt 0:03:35]} 21. Nxe2 {[%emt 0:00:25]} bxc4 {[%emt 0:00:18]} 22. dxc4 {[%emt 0:01:30]} Ne5 {[%emt 0:03:53]} 23. g4 {[%emt 0:01:56]} Rb7 {[%emt 0:05:06]} 24. Bh4 {[%emt 0:00:42]} Re8 {[%emt 0:04:22]} 25. f6 {[%emt 0:01:56]} exf6 {[%emt 0:01:40]} 26. Bxf6 {[%emt 0:00:10]} Qc7 {[%emt 0:00:44]} 27. Nc3 {[%emt 0:01:24]} Bc6 {[%emt 0:01:15]} 28. Bxg7 {[%emt 0:01:25]} Kxg7 {[%emt 0:00:01]} 29. g5 {[%emt 0:00:16]} Reb8 {[%emt 0:01:11]} 30. Qc2 {[%emt 0:05:34]} h6 {[%emt 0:00:23]} 31. gxh6+ {[%emt 0:01:07]} Kxh6 {[%emt 0:00:03]} 32. Qf2 {[%emt 0:00:11]} Qe7 {[%emt 0:00:21]} 33. Qc2 {[%emt 0:01:00]} Kg7 {[%emt 0:00:27]} 34. Nd5 {[%emt 0:01:32]} Bxd5 {[%emt 0:00:04]} 35. exd5 {[%emt 0:00:03]} Qh4 {[%emt 0:00:22]} 36. Qc3 {[%emt 0:00:53]} Qd4 {[%emt 0:00:38]} 37. Qc2 {[%emt 0:00:59]} Rh8 {[%emt 0:01:02]} 38. Rfd1 {[%emt 0:00:37]} Qe3 {[%emt 0:00:32]} 39. Re1 {[%emt 0:00:50]} Qg3 {[%emt 0:00:04]} 40. Rf1 {[%emt 0:00:00]} Ng4 {[%emt 0:00:00]} 41. Qb2+ {[%emt 0:00:00]} f6 {[%emt 0:00:00]} 0-1

[Event "Satka Autumn 2019"]
[Site "Satka"]
[Date "2019.09.22"]
[Round "4.12"]
[White "Shamsutdinova, Karina"]
[Black "Mukhina, Jana"]
[Result "1/2-1/2"]
[ECO "A48"]
[WhiteElo "1747"]
[BlackElo "2083"]
[Annotator "NA"]
[PlyCount "114"]
[EventDate "2019.09.19"]
[EventType "swiss"]
[EventCountry "RUS"]
[SourceTitle "playchess.com"]
[Source "ChessBase"]
[SourceQuality "1"]
[TimeControl "5400+30"]

1. d4 {[%emt 0:00:00]} Nf6 {[%emt 0:03:47]} 2. Nf3 {[%emt 0:00:00]} g6 {[%emt 0:00:11]} 3. Bf4 {[%emt 0:01:30]} Bg7 {[%emt 0:00:07]} 4. e3 {[%emt 0:00:35]} d6 {[%emt 0:00:17]} 5. Be2 {[%emt 0:00:54]} Nh5 {[%emt 0:02:33]} 6. Bg5 {[%emt 0:02:46]} h6 {[%emt 0:00:11]} 7. Bh4 {[%emt 0:00:10]} c5 {[%emt 0:05:19]} 8. Nc3 {[%emt 0:07:53]} g5 {[%emt 0:04:21]} 9. Ng1 {[%emt 0:08:14]} Nf6 {[%emt 0:01:42]} 10. Bg3 {[%emt 0:00:10]} cxd4 {[%emt 0:02:06]} 11. exd4 {[%emt 0:02:17]} Qb6 {[%emt 0:02:12]} 12. Bb5+ {[%emt 0:06:20]} Bd7 {[%emt 0:01:11]} 13. a4 {[%emt 0:02:56]} Nc6 {[%emt 0:04:27]} 14. Nge2 {[%emt 0:13:12]} a6 {[%emt 0:12:27]} 15. Bxc6 {[%emt 0:05:47]} bxc6 {[%emt 0:00:37]} 16. f3 {[%emt 0:02:28]} Nd5 {[%emt 0:03:03]} 17. Qd3 {[%emt 0:09:19]} Nb4 {[%emt 0:08:03]} 18. Qd2 {[%emt 0:01:59]} Bf5 {[%emt 0:02:02]} 19. a5 {[%emt 0:09:23]} Qb7 {[%emt 0:13:12]} 20. Ne4 {[%emt 0:06:27]} d5 {[%emt 0:03:17]} 21. Bd6 {[%emt 0:05:27]} dxe4 {[%emt 0:00:53]} 22. Bxb4 {[%emt 0:00:29]} exf3 {[%emt 0:03:15]} 23. gxf3 {[%emt 0:00:08]} c5 {[%emt 0:02:55]} 24. Bxc5 {[%emt 0:03:39]} Qxb2 {[%emt 0:00:10]} 25. Rc1 {[%emt 0:01:00]} Qb7 {[%emt 0:04:53]} 26. Kf2 {[%emt 0:01:41]} Bg6 {[%emt 0:01:49]} 27. Rb1 {[%emt 0:02:16]} Qd5 {[%emt 0:00:59]} 28. Rhe1 {[%emt 0:01:07]} O-O {[%emt 0:00:18]} 29. Rbc1 {[%emt 0:04:12]} Bh5 {[%emt 0:03:26]} 30. Qe3 {[%emt 0:00:20]} Rfe8 {[%emt 0:00:27]} 31. c4 {[%emt 0:00:28]} Qf5 {[%emt 0:00:46]} 32. Ng3 {[%emt 0:00:24]} Qh3 {[%emt 0:00:00]} 33. Kg1 {[%emt 0:00:10]} e5 {[%emt 0:00:46]} 34. d5 {[%emt 0:00:19]} f5 {[%emt 0:01:27]} 35. Qf2 {[%emt 0:01:35]} g4 {[%emt 0:07:23]} 36. Nxf5 {[%emt 0:01:07]} gxf3 {[%emt 0:03:30]} 37. Nxg7 {[%emt 0:00:12]} Kxg7 {[%emt 0:00:23]} 38. Qg3+ {[%emt 0:00:14]} Qg4 {[%emt 0:01:07]} 39. Qxg4+ {[%emt 0:01:00]} Bxg4 {[%emt 0:00:01]} 40. Kf2 {[%emt 0:00:00]} Kf6 {[%emt 0:00:00]} 41. Bb6 {[%emt 0:00:00]} e4 {[%emt 0:00:00]} 42. c5 {[%emt 0:00:00]} e3+ {[%emt 0:00:00]} 43. Rxe3 {[%emt 0:00:00]} Rxe3 {[%emt 0:00:00]} 44. Kxe3 {[%emt 0:00:00]} Ke5 {[%emt 0:00:00]} 45. Rc4 {[%emt 0:00:00]} Rf8 {[%emt 0:00:00]} 46. Kf2 {[%emt 0:00:00]} h5 {[%emt 0:00:00]} 47. d6 Kd5 {[%emt 0:00:00]} 48. Rc1 {[%emt 0:00:00]} Kc6 {[%emt 0:00:00]} 49. Re1 {[%emt 0:00:00]} Bd7 {[%emt 0:00:00]} 50. Re7 {[%emt 0:00:00]} Rf4 {[%emt 0:00:00]} 51. Rh7 {[%emt 0:02:16]} Rh4 {[%emt 0:00:00]} 52. Kxf3 {[%emt 0:00:29]} Rxh2 {[%emt 0:00:10]} 53. Bd8 {[%emt 0:01:10]} Rc2 {[%emt 0:02:37]} 54. Rxh5 {[%emt 0:00:35]} Rxc5 {[%emt 0:00:31]} 55. Rxc5+ {[%emt 0:00:21]} Kxc5 {[%emt 0:00:02]} 56. Bc7 {[%emt 0:00:12]} Kc6 {[%emt 0:00:18]} 57. Ke4 {[%emt 0:00:15]} Bh3 {[%emt 0:00:08]} 1/2-1/2

[Event "Satka Autumn 2019"]
[Site "Satka"]
[Date "2019.09.23"]
[Round "5.2"]
[White "Makarenko, Alexandra"]
[Black "Mironenko, Galina"]
[Result "1/2-1/2"]
[ECO "B06"]
[WhiteElo "2169"]
[BlackElo "1982"]
[Annotator "NA"]
[PlyCount "141"]
[EventDate "2019.09.19"]
[EventType "swiss"]
[EventCountry "RUS"]
[SourceTitle "playchess.com"]
[Source "ChessBase"]
[SourceQuality "1"]
[TimeControl "5400+30"]

1. e4 {[%emt 0:00:00]} g6 {[%emt 0:00:00]} 2. d4 {[%emt 0:04:11]} Bg7 {[%emt 0:00:00]} 3. Nc3 {[%emt 0:00:27]} d6 {[%emt 0:00:00]} 4. Be3 {[%emt 0:00:47]} a6 {[%emt 0:00:00]} 5. Qd2 {[%emt 0:01:01]} b5 {[%emt 0:00:06]} 6. f3 {[%emt 0:01:03]} Nd7 {[%emt 0:00:13]} 7. O-O-O {[%emt 0:08:46]} Bb7 {[%emt 0:00:09]} 8. d5 {[%emt 0:03:58]} Rc8 {[%emt 0:06:45]} 9. Nge2 {[%emt 0:03:01]} Ngf6 {[%emt 0:05:53]} 10. Nd4 {[%emt 0:02:25]} O-O {[%emt 0:05:43]} 11. Bh6 {[%emt 0:04:16]} c5 {[%emt 0:06:49]} 12. dxc6 {[%emt 0:04:44]} Bxc6 {[%emt 0:00:08]} 13. h4 {[%emt 0:07:49]} b4 {[%emt 0:07:00]} 14. Nd5 {[%emt 0:07:57]} Bxd5 {[%emt 0:07:41]} 15. exd5 {[%emt 0:01:49]} Qa5 {[%emt 0:07:34]} 16. Kb1 {[%emt 0:22:23]} Bxh6 {[%emt 0:07:52]} 17. Qxh6 {[%emt 0:00:19]} Qxd5 {[%emt 0:00:42]} 18. Be2 {[%emt 0:04:42]} Qc5 {[%emt 0:02:15]} 19. Rd2 {[%emt 0:05:21]} a5 {[%emt 0:10:02]} 20. h5 {[%emt 0:00:40]} Qd5 {[%emt 0:12:53]} 21. Rh3 {[%emt 0:10:54]} Nb6 {[%emt 0:08:11]} 22. g4 {[%emt 0:00:49]} Nc4 {[%emt 0:00:37]} 23. Rd1 {[%emt 0:00:42]} Qc5 {[%emt 0:04:47]} 24. hxg6 {[%emt 0:01:36]} fxg6 {[%emt 0:00:07]} 25. f4 {[%emt 0:01:22]} Rf7 {[%emt 0:02:03]} 26. f5 {[%emt 0:00:43]} Ne5 {[%emt 0:01:58]} 27. fxg6 {[%emt 0:00:30]} Nxg6 {[%emt 0:00:27]} 28. Qd2 {[%emt 0:01:14]} Ne4 {[%emt 0:00:36]} 29. Qe3 {[%emt 0:00:29]} Nf2 {[%emt 0:00:58]} 30. Rhh1 {[%emt 0:00:28]} Nxh1 {[%emt 0:00:53]} 31. Rxh1 {[%emt 0:00:30]} e5 {[%emt 0:00:28]} 32. Nf5 {[%emt 0:00:18]} Qxe3 {[%emt 0:01:21]} 33. Nxe3 {[%emt 0:00:02]} Rf2 {[%emt 0:00:28]} 34. Bd3 {[%emt 0:00:17]} Rc7 {[%emt 0:01:16]} 35. g5 {[%emt 0:01:01]} Rc5 {[%emt 0:00:55]} 36. Ng4 {[%emt 0:00:10]} Rf4 {[%emt 0:00:31]} 37. Nf6+ {[%emt 0:00:21]} Rxf6 {[%emt 0:00:18]} 38. gxf6 {[%emt 0:00:05]} d5 {[%emt 0:00:40]} 39. Bf5 {[%emt 0:01:42]} Rc6 {[%emt 0:00:18]} 40. f7+ {[%emt 0:00:00]} Kxf7 {[%emt 0:00:00]} 41. Rxh7+ {[%emt 0:00:00]} Kf6 {[%emt 0:00:00]} 42. Bxg6 {[%emt 0:00:00]} Kxg6 {[%emt 0:00:00]} 43. Rd7 {[%emt 0:00:00]} Rc5 {[%emt 0:00:00]} 44. Kc1 {[%emt 0:00:00]} Kf5 {[%emt 0:00:00]} 45. Kd2 {[%emt 0:00:00]} Ke4 {[%emt 0:00:00]} 46. Rh7 {[%emt 0:00:00]} d4 {[%emt 0:00:00]} 47. Rh4+ {[%emt 0:00:00]} Kd5 {[%emt 0:00:00]} 48. Rh8 {[%emt 0:00:00]} Rb5 {[%emt 0:00:00]} 49. Rd8+ {[%emt 0:00:00]} Ke4 {[%emt 0:00:00]} 50. Ra8 {[%emt 0:00:00]} Rc5 {[%emt 0:00:00]} 51. Ra7 {[%emt 0:00:00]} Kd5 {[%emt 0:00:00]} 52. Ra8 {[%emt 0:00:00]} Ke4 {[%emt 0:00:00]} 53. Ra7 {[%emt 0:00:00]} Rd5 {[%emt 0:00:00]} 54. Ke2 {[%emt 0:00:00]} Rc5 {[%emt 0:00:00]} 55. Kd2 {[%emt 0:00:00]} Kd5 {[%emt 0:00:00]} 56. Ra8 {[%emt 0:00:23]} e4 {[%emt 0:00:00]} 57. Rd8+ {[%emt 0:00:04]} Ke5 {[%emt 0:00:00]} 58. Re8+ {[%emt 0:00:46]} Kf4 {[%emt 0:00:00]} 59. Rd8 {[%emt 0:01:28]} Rh5 {[%emt 0:00:12]} 60. Rf8+ {[%emt 0:00:56]} Rf5 {[%emt 0:00:36]} 61. Re8 {[%emt 0:03:58]} Kf3 {[%emt 0:01:01]} 62. Re7 {[%emt 0:01:29]} Rf4 {[%emt 0:00:42]} 63. c4 {[%emt 0:03:01]} Kf2 {[%emt 0:06:05]} 64. c5 {[%emt 0:00:25]} Kf1 {[%emt 0:00:54]} 65. c6 {[%emt 0:00:16]} Rf2+ {[%emt 0:00:41]} 66. Kc1 {[%emt 0:00:47]} d3 {[%emt 0:02:59]} 67. Rxe4 {[%emt 0:00:26]} Rc2+ {[%emt 0:00:12]} 68. Kd1 {[%emt 0:00:26]} Rxc6 {[%emt 0:00:13]} 69. Re3 {[%emt 0:00:28]} Rc2 {[%emt 0:00:20]} 70. Rf3+ {[%emt 0:00:10]} Kg1 {[%emt 0:00:34]} 71. Rxd3 {[%emt 0:00:46]} 1/2-1/2

[Event "Satka Autumn 2019"]
[Site "Satka"]
[Date "2019.09.23"]
[Round "5.4"]
[White "Lebedeva, Ulyana"]
[Black "Schepetkova, Margarita"]
[Result "0-1"]
[ECO "A46"]
[WhiteElo "1660"]
[BlackElo "2194"]
[Annotator "NA"]
[PlyCount "96"]
[EventDate "2019.09.19"]
[EventType "swiss"]
[EventCountry "RUS"]
[SourceTitle "playchess.com"]
[Source "ChessBase"]
[SourceQuality "1"]
[TimeControl "5400+30"]

1. d4 {[%emt 0:00:00]} Nf6 {[%emt 0:00:00]} 2. Nf3 {[%emt 0:00:00]} e6 {[%emt 0:00:00]} 3. e3 {[%emt 0:00:00]} b6 {[%emt 0:00:22]} 4. b3 {[%emt 0:00:47]} d5 {[%emt 0:00:37]} 5. Bb2 {[%emt 0:00:16]} Bd6 {[%emt 0:00:35]} 6. Bd3 {[%emt 0:02:21]} O-O {[%emt 0:00:43]} 7. O-O {[%emt 0:00:19]} Ne4 {[%emt 0:00:21]} 8. Nbd2 {[%emt 0:02:09]} Bb7 {[%emt 0:00:57]} 9. Qe2 {[%emt 0:04:50]} Nd7 {[%emt 0:00:46]} 10. Ne5 {[%emt 0:02:28]} Nxd2 {[%emt 0:07:22]} 11. Qxd2 {[%emt 0:00:20]} f6 {[%emt 0:04:19]} 12. Nxd7 {[%emt 0:00:33]} Qxd7 {[%emt 0:00:03]} 13. f4 {[%emt 0:02:47]} Kh8 {[%emt 0:03:12]} 14. Qe2 {[%emt 0:01:55]} f5 {[%emt 0:01:14]} 15. Rf3 {[%emt 0:01:23]} Rf6 {[%emt 0:00:27]} 16. Rh3 {[%emt 0:01:48]} Rg8 {[%emt 0:06:27]} 17. Rg3 {[%emt 0:08:33]} Rh6 {[%emt 0:02:24]} 18. Rg5 {[%emt 0:16:07]} Qf7 {[%emt 0:06:15]} 19. Rf1 {[%emt 0:14:11]} Bc6 {[%emt 0:01:15]} 20. Bb5 {[%emt 0:10:48]} Bxb5 {[%emt 0:00:10]} 21. Qxb5 {[%emt 0:00:21]} Rh4 {[%emt 0:00:23]} 22. Bc3 {[%emt 0:04:09]} h6 {[%emt 0:02:54]} 23. Rg3 {[%emt 0:03:18]} g5 {[%emt 0:00:58]} 24. Be1 {[%emt 0:01:42]} g4 {[%emt 0:05:38]} 25. c4 {[%emt 0:08:48]} Qh5 {[%emt 0:01:46]} 26. cxd5 {[%emt 0:04:28]} Rxh2 {[%emt 0:07:14]} 27. dxe6 {[%emt 0:00:36]} Be7 {[%emt 0:02:04]} 28. Qe5+ {[%emt 0:01:41]} Rg7 {[%emt 0:00:17]} 29. d5 {[%emt 0:02:38]} Kh7 {[%emt 0:08:49]} 30. Bc3 {[%emt 0:00:45]} Rg8 {[%emt 0:00:02]} 31. Qxc7 {[%emt 0:00:56]} Qh4 {[%emt 0:00:21]} 32. d6 {[%emt 0:04:04]} Rg7 {[%emt 0:00:02]} 33. Bxg7 {[%emt 0:00:26]} Rh1+ {[%emt 0:13:07]} 34. Kf2 {[%emt 0:00:24]} Qxg3+ {[%emt 0:00:02]} 35. Ke2 {[%emt 0:00:29]} Qxg2+ {[%emt 0:00:31]} 36. Rf2 {[%emt 0:00:04]} Qg1 {[%emt 0:00:02]} 37. Qc2 {[%emt 0:00:30]} Qe1+ {[%emt 0:00:12]} 38. Kd3 {[%emt 0:00:11]} Bxd6 {[%emt 0:00:21]} 39. Be5 {[%emt 0:01:29]} Qb4 {[%emt 0:04:18]} 40. Bd4 {[%emt 0:00:00]} Qb5+ {[%emt 0:00:00]} 41. Kc3 {[%emt 0:00:00]} Ba3 {[%emt 0:00:00]} 42. Kd2 {[%emt 0:00:00]} Bb4+ {[%emt 0:00:00]} 43. Bc3 {[%emt 0:00:00]} Qd5+ {[%emt 0:00:00]} 44. Ke2 {[%emt 0:00:00]} Bxc3 {[%emt 0:00:00]} 45. Rf1 {[%emt 0:00:00]} Rh2+ {[%emt 0:00:00]} 46. Rf2 {[%emt 0:00:00]} Qf3+ {[%emt 0:00:00]} 47. Kd3 {[%emt 0:00:00]} Rxf2 {[%emt 0:00:00]} 48. Qxc3 {[%emt 0:00:00]} Qe4# {[%emt 0:00:00]} 0-1